Cogmind - Beta 16 @@@ ROGUE MODE // 2026.01.04 @ 21:44:04 // Winter2019/RPGLIKE Player: Gallgagger Result: Destroyed by G-47 Trooper with Particle Gun Performance ------------- Evolutions (2) 1000 Regions Visited (9) 1800 Robots Destroyed (278) 1390 Value Destroyed (9571) 9571 Prototype IDs (35) 700 Alien Tech Used (0) 0 Bonus (3054) 3054 TOTAL SCORE: 17515 Bonus ------- High Alert Combat Kills 2869 Follower Combat Kills 114 Entered Garrisons 200 Aligned with FarCom 300 Friendly Fire -429 Cogmind --------- Core Integrity 0/750 Matter 414/450 Energy 490/490 System Corruption 2% Temperature Cool (19) Movement Hovering (38) Location -8/Materials Parts ------- > --- POWER (2) -------- Cooled Ion Engine Heavy Deuterium Engine > --- PROPULSION (5) --- Gravmag System Gravmag System Cooled Antigrav System Cooled Antigrav System Cooled Antigrav System > --- UTILITY (7) ------ Experimental Sensor Array Seismic Detector Salvage Targeting Computer Experimental Core Analyzer Advanced Weapon Cycler Graphene Brace ME-RLN's Chromatic Screen > --- WEAPON (5) ------- Minigun Minigun Minigun Minigun Minigun > --- INVENTORY (3) ---- Gravity Neutralizer Trap Reconfigurator Deploy-a-Sentry Peak State ------------ > --- POWER ------------ Cooled Ion Engine Heavy Deuterium Engine > --- PROPULSION ------- Gravmag System Gravmag System Cooled Antigrav System Cooled Antigrav System Cooled Antigrav System > --- UTILITY ---------- Experimental Sensor Array Seismic Detector Experimental Core Analyzer Advanced Weapon Cycler Graphene Brace ME-RLN's Chromatic Screen Trap Reconfigurator > --- WEAPON ----------- Minigun Minigun Minigun Minigun Minigun > --- INVENTORY -------- Gravity Neutralizer Gauss Rifle Deploy-a-Sentry [Rating: 112] Favorites ----------- Power Cooled Ion Engine Engine Cooled Ion Engine Propulsion Cooled Antigrav System Leg Advanced Myomer Leg Wheel Wheel Hover Unit Cooled Antigrav System Utility Seismic Detector Device Seismic Detector Processor Experimental Core Analyzer Protection Reactive Plating Weapon Autogun Energy Gun Particle Gun Ballistic Gun Autogun Build | -11 -10 -10 -9 -9 -9 -8 -8 -8 -8 ------- Run | Yrd Mat Min Mat Min Exi Min Mat Gar Mat Slots Evolved 15 | 3 4 . 3 1 . 1 2 . 1 Power 1 | . . . 1 . . . . . . Propulsion 4 | 1 1 . 1 . . 1 . . . Utility 6 | 1 1 . 1 1 . . 2 . . Weapon 4 | 1 2 . . . . . . . 1 Parts Attached 49 | 6 10 3 6 1 8 4 2 3 6 Power 4 | 1 . . 2 . 1 . . . . Engine 4 | 1 . . 2 . 1 . . . . Core . | . . . . . . . . . . Reactor . | . . . . . . . . . . Propulsion 17 | 1 4 1 4 . 2 3 . 2 . Treads . | . . . . . . . . . . Leg 1 | . . . . . 1 . . . . Wheel 2 | 1 1 . . . . . . . . Hover 14 | . 3 1 4 . 1 3 . 2 . Flight . | . . . . . . . . . . Utility 15 | 2 1 2 . 1 5 1 2 . 1 Device 11 | 2 1 1 . . 4 1 2 . . Storage . | . . . . . . . . . . Processor 2 | . . . . . 1 . . . 1 Hackware . | . . . . . . . . . . Protection 2 | . . 1 . 1 . . . . . Artifact . | . . . . . . . . . . Weapon 13 | 2 5 . . . . . . 1 5 Energy Gun 1 | . 1 . . . . . . . . Energy Cannon . | . . . . . . . . . . Ballistic Gun 12 | 2 4 . . . . . . 1 5 Ballistic Cannon . | . . . . . . . . . . Launcher . | . . . . . . . . . . Special Weapon . | . . . . . . . . . . Impact Weapon . | . . . . . . . . . . Slashing Weapon . | . . . . . . . . . . Piercing Weapon . | . . . . . . . . . . Special Melee Weapon . | . . . . . . . . . . Unidentified Prototypes 11 | . . 1 2 . 6 2 . . . Parts Lost . | . . . . . . . . . . Power . | . . . . . . . . . . Propulsion . | . . . . . . . . . . Utility . | . . . . . . . . . . Weapon . | . . . . . . . . . . Highest Loss Streak . | . . . . . . . . . . To Critical Strikes . | . . . . . . . . . . Average Backups 1 | . . . . . 1 2 1 1 2 Power . | . . . . . . . . . . Propulsion . | . . . . . . . . . . Utility . | . . . . . 1 2 1 1 1 Weapon . | . . . . . . . . . . Tool/Special . | . . . . . . . . . . Unused Backups 8 | . . . 1 . 6 . . 1 . Power 3 | . . . . . 3 . . . . Propulsion . | . . . . . . . . . . Utility 4 | . . . 1 . 3 . . . . Weapon 1 | . . . . . . . . 1 . Tool/Special . | . . . . . . . . . . Average Slot Usage (%) 99 | . 97 100 99 100 100 100 99 100 100 Engine 11 | . 11 9 12 13 13 12 11 11 10 Wheel 3 | . 18 . . . . . . . . Hover 23 | . 8 27 27 26 26 26 30 27 26 Device 25 | . 24 26 20 20 21 24 26 33 30 Processor 2 | . . . . . 1 6 5 5 6 Protection 2 | . . . 7 11 9 1 . . . Ballistic Gun 27 | . 29 36 29 26 26 25 24 22 24 Peak Build Rating 112 | 8 17 27 35 37 70 93 108 111 112 Average Rating 55 | 3 12 23 32 36 46 81 96 107 107 On Entrance 49 | . 8 17 27 35 37 64 93 108 107 Avg Prop Armor Cover (%) 2 | . 3 . . . . 2 . . . Naked Turns . | . . . . . . . . . . Heaviest Build 44 | 9 18 27 36 43 44 44 38 39 41 Greatest Support 79 | 15 28 30 39 44 65 78 78 79 72 Greatest Overweight (x) 1 | . . . 1 . . . . . . Average Overweight (x) . | . . . . . . . . . . Largest Inventory Capacity 3 | 1 1 3 3 3 3 3 3 3 3 Average Capacity 2 | 1 1 1 3 3 3 3 3 3 3 Most Carried 3 | 1 1 3 3 3 3 3 3 3 3 Average Carried 2 | . . 1 2 2 2 3 2 2 2 Final Capacity 3 | 1 1 3 3 3 3 3 3 3 3 Final Carried 3 | 1 1 3 3 2 3 3 2 3 3 Class Distribution -------------------- 54% | Scavenger-Gunner 29% | Gunner 6% | Tank 6% | Scavenger-Mutant 3% | Mutant Dominant Class ---------------- Scavenger-Gunner | -10/Materials Gunner | -10/Mines Gunner | -9/Materials Tank | -9/Mines Gunner | -9/Exiles Scavenger-Gunner | -8/Mines Scavenger-Gunner | -8/Materials Scavenger-Gunner | -8/Garrison Scavenger-Gunner | -8/Materials Resources | -11 -10 -10 -9 -9 -9 -8 -8 -8 -8 ----------- Run | Yrd Mat Min Mat Min Exi Min Mat Gar Mat Matter Collected 8802 | 278 920 366 1664 154 902 683 1748 1008 1079 Remotely 2137 | . 26 340 1155 154 462 . . . . Salvage Created 9515 | 15 1224 318 1756 163 438 702 2858 984 1057 Parts 668 | 6 102 28 123 17 45 34 137 86 90 Haulers Intercepted 6 | . 1 . 2 . . . 2 . 1 Recyclers Shooed 3 | . 1 . 1 . . . 1 . . Parts Field Recycled . | . . . . . . . . . . Retrieved Matter . | . . . . . . . . . . Parts Self-Destructed . | . . . . . . . . . . Prevented . | . . . . . . . . . . Parts Restored . | . . . . . . . . . . Kills | -11 -10 -10 -9 -9 -9 -8 -8 -8 -8 ------- Run | Yrd Mat Min Mat Min Exi Min Mat Gar Mat Combat Hostiles Destroyed 231 | 1 37 5 49 10 6 9 54 33 27 Guns 231 | 1 37 5 49 10 6 9 54 33 27 Classes Destroyed 21 | 2 8 . 5 . 2 1 1 1 1 Worker 7 | . 2 1 . 1 . 2 . . 1 Builder 3 | . 1 1 . . . . . . 1 Tunneler 7 | 1 . 4 1 . . 1 . . . Hauler 6 | . 1 . 2 . . . 2 . 1 Recycler 7 | . 1 2 1 . . 2 1 . . Mechanic 2 | . . . 1 . . . 1 . . Operator 5 | . 3 . . . . . 1 . 1 Watcher 6 | . 3 . 1 . . . 1 . 1 Swarmer 52 | . 9 3 6 8 . 4 4 15 3 Cutter 3 | . . . . . . . . . 3 Grunt 122 | 1 26 2 31 2 . 2 34 9 15 Brawler 4 | . . . 1 . . 1 2 . . Duelist 4 | . . . 2 . . . 1 . 1 Protector 2 | . . . 1 . . . 1 . . Sentry 24 | . . . 8 . . . 8 4 4 Hunter 6 | . . . . . . 1 3 2 . Programmer 3 | . . . . . . . . 3 . Heavy 2 | . . . . . . . 1 . 1 Subdweller 2 | . 2 . . . . . . . . Zionite 5 | . . . . . 5 . . . . Assembled 5 | . . . . . 5 . . . . Thug 1 | . . 1 . . . . . . . Best Kill Streak 18 | 2 10 5 18 5 8 3 8 7 6 Combat Bots Only 14 | 1 8 3 14 4 4 3 7 7 6 Max Kills in Single Turn 3 | 1 2 2 3 2 2 1 2 3 2 Gunslinging 1 | . 1 1 1 1 . . 1 1 1 Exploded . | . . . . . . . . . . Melee . | . . . . . . . . . . Uniques/NPCs Destroyed 5 | . . . . . 4 1 . . . 8R-AWN (-9/Exiles) EX-DEC (-9/Exiles) EX-BIN (-9/Exiles) EX-HEX (-9/Exiles) ME-RLN (-8/Mines) Combat | -11 -10 -10 -9 -9 -9 -8 -8 -8 -8 -------- Run | Yrd Mat Min Mat Min Exi Min Mat Gar Mat Hostile Shots Fired 762 | 2 112 8 113 12 54 105 99 56 201 Missed 226 | . 29 5 38 1 10 35 39 17 52 Hits 536 | 2 83 3 75 11 44 70 60 39 149 Melee 3 | . . . 1 . . . . . 2 Projectile 533 | 2 83 3 74 11 44 70 60 39 147 AOE 1 | . . . . . . . . 1 . Critical Strikes 24 | . . . 1 . 17 . 4 . 2 Actively Blocked 2 | . . . . . . . . . 2 Part Disruptions 6 | . . . . . . 6 . . . Damage Taken 5612 | 22 967 68 927 70 740 427 772 418 1201 Core 4127 | 19 770 52 639 38 456 313 604 334 902 Absorbed by Shields . | . . . . . . . . . . Redirected to Core 3555 | 9 616 52 535 38 420 257 554 248 826 Ignored by Resistances 995 | . . . 48 22 206 39 222 120 338 Regen/Repaired (Parts) 9 | . 9 . . . . . . . . Core Remaining (%) 69 | 100 . 97 . . . 11 . . . Volleys Fired 548 | 3 94 21 88 9 52 37 108 81 55 Largest 5 | 2 4 4 4 4 4 4 4 4 5 Hottest 125 | 40 92 92 92 92 92 92 92 97 125 Shots Fired 1984 | 6 253 84 351 36 202 138 432 243 239 Gun 1984 | 6 253 84 351 36 202 138 432 243 239 Cannon . | . . . . . . . . . . Launcher . | . . . . . . . . . . Special . | . . . . . . . . . . Kinetic 1951 | 6 220 84 351 36 202 138 432 243 239 Thermal 33 | . 33 . . . . . . . . Explosive . | . . . . . . . . . . Electromagnetic . | . . . . . . . . . . Robot Hit Streak 42 | 3 28 8 21 7 13 21 42 22 29 Robot Miss Streak 6 | 1 4 3 6 4 2 3 3 3 3 Penetration Max 1 | . . . . . . . . 1 . Secondary Targets 51 | . 7 1 13 3 2 . 12 8 5 Max Gunslinging Chain 2 | . 2 1 1 1 1 . 1 1 1 Shots Hit Robots 1280 | 3 160 45 233 16 140 91 314 118 160 Core Hits 520 | 3 69 21 83 12 34 31 143 55 69 Critical Kills 3 | . . . 1 . . . 1 1 . Critical Parts Destroyed 4 | . . . 1 . . . . 2 1 Critical Strikes 8 | . . . 2 . 1 . 1 3 1 Destroy 8 | . . . 2 . 1 . 1 3 1 Melee Attacks . | . . . . . . . . . . Impact . | . . . . . . . . . . Slashing . | . . . . . . . . . . Piercing . | . . . . . . . . . . Sneak Attacks . | . . . . . . . . . . Combat Hostiles . | . . . . . . . . . . Follow-up Attacks . | . . . . . . . . . . Damage Inflicted 19578 | 39 2331 833 3713 246 1996 1132 4756 1867 2665 Guns 19578 | 39 2331 833 3713 246 1996 1132 4756 1867 2665 Cannons . | . . . . . . . . . . Explosions . | . . . . . . . . . . Melee . | . . . . . . . . . . Ramming . | . . . . . . . . . . Kinetic 19139 | 39 1892 833 3713 246 1996 1132 4756 1867 2665 Thermal 439 | . 439 . . . . . . . . Explosive . | . . . . . . . . . . Electromagnetic . | . . . . . . . . . . Impact . | . . . . . . . . . . Slashing . | . . . . . . . . . . Piercing . | . . . . . . . . . . Highest Corruption 2 | . . . . . . 2 1 1 2 Average Corruption 1 | . . . . . . 1 1 1 1 Corruption Purged . | . . . . . . . . . . Corruption Blocked . | . . . . . . . . . . Effects 18 | . . . . . . 3 . 5 10 Message Errors 1 | . . . . . . . . . 1 Matter Fused 8 | . . . . . . 2 . 2 4 Energy Discharges 3 | . . . . . . . . . 3 Misfires 2 | . . . . . . 1 . 1 . Weapon Failures 4 | . . . . . . . . 2 2 Overload Shots . | . . . . . . . . . . Overflow Damage . | . . . . . . . . . . Projectiles . | . . . . . . . . . . Explosions . | . . . . . . . . . . Melee . | . . . . . . . . . . Knockbacks . | . . . . . . . . . . Impact . | . . . . . . . . . . Kinetic . | . . . . . . . . . . Secondary . | . . . . . . . . . . Self-Inflicted Damage . | . . . . . . . . . . Shots . | . . . . . . . . . . Rammed . | . . . . . . . . . . Targets Rammed . | . . . . . . . . . . Kicked . | . . . . . . . . . . Crushed . | . . . . . . . . . . Highest Temperature 162 | . 44 44 162 20 20 109 48 29 130 Average Temperature 23 | . 17 19 30 9 9 36 13 10 42 Received Heat Transfer 1638 | 12 474 . 429 . . 27 432 120 144 Siege Activations . | . . . . . . . . . . Martial Activations . | . . . . . . . . . . Shielding Activations . | . . . . . . . . . . Robots Disrupted . | . . . . . . . . . . Combat Hostiles . | . . . . . . . . . . Robots Corrupted . | . . . . . . . . . . Combat Hostiles . | . . . . . . . . . . Parts Fried 3 | . . . . . . . . . 3 Impact Corruptions . | . . . . . . . . . . Robots Melted . | . . . . . . . . . . Combat Hostiles . | . . . . . . . . . . Parts Melted 4 | . 3 . . . . . . 1 . Heat Transferred 1036 | . 1036 . . . . . . . . Parts Sabotaged . | . . . . . . . . . . Parts Stolen . | . . . . . . . . . . Parts Stripped . | . . . . . . . . . . Power Chain Reactions . | . . . . . . . . . . Alert | -11 -10 -10 -9 -9 -9 -8 -8 -8 -8 ------- Run | Yrd Mat Min Mat Min Exi Min Mat Gar Mat Maximum Alert Level 5 | . 2 1 4 2 . . 4 5 4 Low Security (%) 29 | 100 39 62 10 . . 100 17 . . Level 1 14 | . 21 37 9 . . . 26 . . Level 2 21 | . 39 . 27 100 . . 22 . . Level 3 11 | . . . 35 . . . 20 15 6 Level 4 17 | . . . 16 . . . 13 42 93 Level 5 5 | . . . . . . . . 42 . High Security . | . . . . . . . . . . Max Security . | . . . . . . . . . . Sterilizations 2 | . . . 1 . . . 1 . . Peak Influence 1964 | 25 699 280 1421 697 . 105 1222 1964 1577 Initial 957 | . 9 270 43 549 . . 16 782 957 Average 618 | 5 292 188 696 610 . 46 572 1498 1348 Influence Increases 7299 | 25 1149 160 1784 258 . 205 1598 1222 898 Destroy 0b10 Robot/C 4520 | 20 700 100 1080 200 . 140 1060 680 540 Destroy 0b10 Robot/NC 230 | 5 55 40 45 5 . 20 35 . 25 Destroy Leader 916 | . 178 20 238 30 . 30 266 30 124 Allied During Kill 168 | . . . 114 8 . . . 20 26 Trap Triggered on 0b10 130 | . . . . . . . 30 . 100 Successful Hack 27 | . 12 . . . . . . 12 3 Select Force Hacks 570 | . 110 . 260 . . . 170 . 30 Disable Machine 60 | . 15 . 15 15 . . . 15 . Anti-Garrison Action 350 | . . . . . . . . 350 . Destroy Structure 88 | . 4 . 2 . . . 7 70 5 Partial Spotted 75 | . . . 30 . . . . 15 30 Lose Combat Pursuer 165 | . 75 . . . . 15 30 30 15 Influence Decreases 5722 | 10 469 743 487 1000 667 162 437 462 1285 Entered New Map 3483 | . 6 425 69 860 667 . 27 422 1007 Time Decay 2139 | 10 463 318 398 140 . 162 410 . 238 Lost Ally 100 | . . . 20 . . . . 40 40 Squads Dispatched 47 | . 12 1 11 . . . 15 . 8 Investigation 32 | . 9 1 9 . . . 10 . 3 Extermination . | . . . . . . . . . . Reinforcement 7 | . 3 . . . . . 1 . 3 Assault 5 | . . . 2 . . . 1 . 2 Garrison 3 | . . . . . . . 3 . . Intercept . | . . . . . . . . . . Searches Triggered . | . . . . . . . . . . Unchained Authorized 1 | . . . . . . . . . 1 Construction Impeded . | . . . . . . . . . . Haulers Reinforced . | . . . . . . . . . . Active Scanning Responses . | . . . . . . . . . . Cargo Convoy Interrupts . | . . . . . . . . . . Stealth | -11 -10 -10 -9 -9 -9 -8 -8 -8 -8 --------- Run | Yrd Mat Min Mat Min Exi Min Mat Gar Mat Distress Signals 13 | . 5 . 3 . . . 4 . 1 Communications Jammed . | . . . . . . . . . . Distress Signals . | . . . . . . . . . . Times Spotted 290 | 1 60 5 65 9 16 9 65 31 29 Peak Tracking Total 9 | 1 7 3 6 4 9 3 8 6 5 Tactical Retreats 10 | . 3 . . . 3 1 1 1 1 Traps | -11 -10 -10 -9 -9 -9 -8 -8 -8 -8 ------- Run | Yrd Mat Min Mat Min Exi Min Mat Gar Mat Traps Triggered 14 | . 3 1 3 . . . 1 5 1 Indirectly . | . . . . . . . . . . Trap Hack Attempts . | . . . . . . . . . . Triggered . | . . . . . . . . . . Disarmed . | . . . . . . . . . . Reprogrammed . | . . . . . . . . . . Reused 15 | . . . . . 2 . 3 . 10 Traps Reconfigurated 37 | . . . . . . . 4 20 13 Traps Extracted . | . . . . . . . . . . Installed 2 | . . . . . 2 . . . . Triggered 13 | . . . . . . . 3 . 10 Most Traps Carried 2 | . . 2 2 2 2 . . . . Machines | -11 -10 -10 -9 -9 -9 -8 -8 -8 -8 ---------- Run | Yrd Mat Min Mat Min Exi Min Mat Gar Mat Machines Disabled 19 | . 1 . 1 1 9 . 1 6 . Max in Single Turn 1 | . 1 . 1 1 1 . 1 1 . Garrison Relay 5 | . . . . . . . . 5 . Machines Repaired . | . . . . . . . . . . Machines Dismantled . | . . . . . . . . . . Machines Sabotaged 6 | . 1 . 4 . . . 1 . . Overloaded Fab Kills . | . . . . . . . . . . Hacking | -11 -10 -10 -9 -9 -9 -8 -8 -8 -8 --------- Run | Yrd Mat Min Mat Min Exi Min Mat Gar Mat Machines Accessed 41 | . 7 2 9 . 1 . 14 4 4 Terminals 25 | . 4 . 7 . . . 7 4 3 Fabricators . | . . . . . . . . . . Repair Stations 3 | . 1 . . . . . 2 . . Recycling Units 6 | . 2 . 2 . . . 2 . . Scanalyzers 3 | . . . . . . . 2 . 1 Garrison Access 1 | . . . . . . . 1 . . Total Hacks 77 | . 11 2 23 . 1 . 23 8 9 Successful 37 | . 7 2 10 . 1 . 10 3 4 Failed 40 | . 4 . 13 . . . 13 5 5 Catastrophic 10 | . 1 . 1 . . . 6 2 . Database Lockouts . | . . . . . . . . . . Manual 57 | . 11 . 15 . 1 . 22 . 8 Terminals 59 | . 8 . 21 . . . 14 8 8 Fabricators . | . . . . . . . . . . Repair Stations 4 | . 1 . . . . . 3 . . Recycling Units 6 | . 2 . 2 . . . 2 . . Scanalyzers 4 | . . . . . . . 3 . 1 Garrison Access 1 | . . . . . . . 1 . . Terminal Hacks 12 | . 1 2 3 . 1 . 1 3 1 Prototype ID Bank 1 | . . . 1 . . . . . . Open Door 3 | . . 2 . . . . . 1 . Branch Access Points 1 | . . . . . . . 1 . . Emergency Access Points 1 | . . . . . . . . 1 . Recycling Unit Index 2 | . 1 . 1 . . . . . . Locate Traps 1 | . . . . . . . . . 1 Zone Layout 1 | . . . 1 . . . . . . Garrison Registry 1 | . . . . . . . . 1 . Proto ID Catalog 1 | . . . . . 1 . . . . Fabricator Hacks . | . . . . . . . . . . Repair Station Hacks . | . . . . . . . . . . Recycling Unit Hacks . | . . . . . . . . . . Scanalyzer . | . . . . . . . . . . Garrison Access Hacks 1 | . . . . . . . 1 . . Unlock Access 1 | . . . . . . . 1 . . Unauthorized Hacks 24 | . 6 . 7 . . . 8 . 3 Terminals 12 | . 3 . 5 . . . 2 . 2 Botnet 1 | . 1 . . . . . . . . Disrupt 1 | . . . . . . . . . 1 Sabotage 10 | . 2 . 5 . . . 2 . 1 Fabricators . | . . . . . . . . . . Repair Stations 3 | . 1 . . . . . 2 . . Patch 3 | . 1 . . . . . 2 . . Recycling Units 6 | . 2 . 2 . . . 2 . . Tunnel 6 | . 2 . 2 . . . 2 . . Scanalyzers 3 | . . . . . . . 2 . 1 Extract 3 | . . . . . . . 2 . 1 Garrison Access . | . . . . . . . . . . Data Cores Recovered 3 | . 1 . . . . . 1 . 1 Used . | . . . . . . . . . . Hacking Detections 17 | . 2 . 5 . . . 4 4 2 Full Trace Events 11 | . 2 . 2 . . . 4 2 1 Feedback Events 1 | . . . . . . . 1 . . Corruption 1 | . . . . . . . 1 . . Feedback Blocked . | . . . . . . . . . . Robot Schematics Acquired . | . . . . . . . . . . Robots Built . | . . . . . . . . . . Authchips . | . . . . . . . . . . Time . | . . . . . . . . . . Total Robot Build Rating . | . . . . . . . . . . Part Schematics Acquired 10 | . . . . . . . 3 . 7 Parts Built . | . . . . . . . . . . Authchips . | . . . . . . . . . . Time . | . . . . . . . . . . Total Part Build Rating . | . . . . . . . . . . Part Studies Acquired . | . . . . . . . . . . Parts Repaired . | . . . . . . . . . . Time . | . . . . . . . . . . Parts Recycled . | . . . . . . . . . . Recycled Matter . | . . . . . . . . . . Retrieved Matter . | . . . . . . . . . . Retrieved Components . | . . . . . . . . . . Parts Scanalyzed . | . . . . . . . . . . Part Schematics Acquired . | . . . . . . . . . . Parts Damaged . | . . . . . . . . . . Bothacking | -11 -10 -10 -9 -9 -9 -8 -8 -8 -8 ------------ Run | Yrd Mat Min Mat Min Exi Min Mat Gar Mat Used RIF Installer . | . . . . . . . . . . Robots Hacked . | . . . . . . . . . . Non-combat . | . . . . . . . . . . Combat . | . . . . . . . . . . Robot Hacks Applied . | . . . . . . . . . . Relay Couplers Released 10 | . . . . . . . . 10 . Machine Destruction 10 | . . . . . . . . 10 . Fabnet Peak Effective % . | . . . . . . . . . . Robots Rewired 4 | . . . . . . . . 4 . Allies Hacked . | . . . . . . . . . . Hacks Repelled . | . . . . . . . . . . Allies | -11 -10 -10 -9 -9 -9 -8 -8 -8 -8 -------- Run | Yrd Mat Min Mat Min Exi Min Mat Gar Mat Total Allies 6 | . . 2 . . . . . 4 . Largest Group 2 | . . 2 2 1 1 . . 2 2 Highest-Rated Group 70 | . . 47 47 28 28 . . 70 70 Highest-Rated Ally 39 | . . 31 31 28 28 . . 39 39 Initial Warlord ECA Mod 7 | . . . . . . . . . 7 Total Orders . | . . . . . . . . . . Ally Attacks 55 | . . . 30 . 16 . . 3 6 Total Damage 1237 | . . . 379 . 681 . . 88 89 Kills 12 | . . . 8 . 3 . . 1 . Allies Corrupted . | . . . . . . . . . . Allies Melted . | . . . . . . . . . . Turrets Deployed 1 | . . . . . 1 . . . . Intel | -11 -10 -10 -9 -9 -9 -8 -8 -8 -8 ------- Run | Yrd Mat Min Mat Min Exi Min Mat Gar Mat Active Infowar (turns) 6692 | 11 1316 703 955 299 721 461 990 729 507 Sensors 5188 | . . 526 955 299 721 461 990 729 507 Terrain 1501 | 8 1316 177 . . . . . . . Seismic 6692 | 11 1316 703 955 299 721 461 990 729 507 Robot Analysis Total . | . . . . . . . . . . Derelict Logs Recovered 2 | . . 1 . 1 . . . . . Drone Launches . | . . . . . . . . . . Drone Recoveries . | . . . . . . . . . . Exploration | -11 -10 -10 -9 -9 -9 -8 -8 -8 -8 ------------- Run | Yrd Mat Min Mat Min Exi Min Mat Gar Mat Turns Passed 6752 | 71 1316 703 955 299 721 461 990 729 507 Spaces Moved 7808 | 68 944 807 1093 432 985 814 1011 900 754 Core 16 | 16 . . . . . . . . . Treads . | . . . . . . . . . . Legs . | . . . . . . . . . . Wheels 648 | 52 596 . . . . . . . . Hover 7144 | . 348 807 1093 432 985 814 1011 900 754 Flight . | . . . . . . . . . . Fastest Speed 38 | 50 52 52 48 48 48 40 42 38 38 Average Speed 48 | 72 70 52 49 48 49 42 42 40 38 Slowest Speed 112 | 80 80 52 112 48 53 58 42 42 38 Overloaded Moves . | . . . . . . . . . . Propulsion Burnouts . | . . . . . . . . . . Robots Hopped 54 | . . . 1 . 53 . . . . Potential Cave-ins . | . . . . . . . . . . Cave-ins Triggered . | . . . . . . . . . . Exploration Rate (%) 75 | 5 87 100 83 96 89 90 70 82 54 Regions Visited 9 Branch Regions 4 Pre-discovered Areas 6 | . 2 . 2 . . . 2 . . Known Exits Taken 1 | . . . . . . . 1 . . Unknown Exits Taken 7 | 1 1 1 1 1 1 1 . . . Scrap Searched 5 | . . 3 . 1 . 1 . . . Spaces Dug . | . . . . . . . . . . Terrain Destroyed 1 | . . . . . . . . 1 . Melee . | . . . . . . . . . . Projectile 1 | . . . . . . . . 1 . AOE . | . . . . . . . . . . Terrain Rammed . | . . . . . . . . . . Walls Destroyed . | . . . . . . . . . . Machines Disabled . | . . . . . . . . . . Actions | -11 -10 -10 -9 -9 -9 -8 -8 -8 -8 --------- Run | Yrd Mat Min Mat Min Exi Min Mat Gar Mat Total 9970 | 80 1416 1055 1359 507 1094 889 1464 1187 919 Wait 1256 | 2 309 214 94 60 63 27 260 144 83 Move 7691 | 67 943 806 1090 431 878 813 1010 899 754 Hop 54 | . . . 1 . 53 . . . . Pick Up 29 | 1 2 4 2 . 16 . 1 2 1 Fast Attach 21 | 6 5 . 8 . . 1 . . 1 Attach 4 | . . . 1 1 . . 2 . . Detach . | . . . . . . . . . . Swap 41 | . 7 3 7 . 10 5 . 3 6 Drop 38 | . 4 3 5 . 17 2 . 2 5 Fire 548 | 3 94 21 88 9 52 37 108 81 55 Melee . | . . . . . . . . . . Ram . | . . . . . . . . . . Kick . | . . . . . . . . . . Crush . | . . . . . . . . . . Escape Stasis 5 | . . . . . . . . 5 . Rewire 22 | . . . . . . . . 22 . Trap 2 | . . . . . 2 . . . . Miscellaneous 259 | 1 52 4 63 6 3 4 83 29 14 Route ------- -11/Scrapyard -10/Materials (discovered 4 exits: *Mat x2 / *Min x2) -10/Mines (discovered 2 exits: *Mat x2) -9/Materials (discovered 5 exits: *Mat x3 / [*Min x2]) -9/Mines (discovered 3 exits: *Mat x2 / *Exi) -9/Exiles -8/Mines (discovered 2 exits: *Mat x2) -8/Materials (discovered 5 exits: [*Fac x2] / *Sto x2 / Gar) -8/Garrison (discovered 3 exits: *Mat x3) -8/Materials (discovered 5 exits: [*Fac x3] / *Sto x2) History --------- Turn | Location | Event 1 | -11/Scrapyard | Upgraded with Propulsion slot (x1) 1 | -11/Scrapyard | Upgraded with Utility slot (x1) 1 | -11/Scrapyard | Upgraded with Weapon slot (x1) 2 | -11/Scrapyard | Met Revision 17 41 | -11/Scrapyard | Discovered new exit (range 8) 72 | -11/Scrapyard | Entered Materials 361 | -10/Materials | Core integrity fell below 50% 538 | -10/Materials | Reached level 2 569 | -10/Materials | Build established: Scavenger-Mutant 635 | -10/Materials | Discovered new exit (range 11) 691 | -10/Materials | Upgraded with Weapon slot (x1) 770 | -10/Materials | Reached level 3 779 | -10/Materials | Upgraded with Propulsion slot (x1) 779 | -10/Materials | Upgraded with Weapon slot (x1) 1006 | -10/Materials | Discovered new exit (range 8) 1107 | -10/Materials | Discovered new exit (range 15) 1120 | -10/Materials | Build established: Scavenger-Gunner 1172 | -10/Materials | Derelicts attacked the area 1212 | -10/Materials | Discovered new exit (range 15) 1284 | -10/Materials | Reached level 4 1303 | -10/Materials | Upgraded with Utility slot (x1) 1313 | -10/Materials | Destroyed 8 combat bots 1388 | -10/Materials | Entered Mines 1412 | -10/Mines | Met a Derelict shopkeep closing up shop 1509 | -10/Mines | Found a hidden stash of uninstalled traps 1561 | -10/Mines | Found a damaged Exp. Sensor Array with a note attached 1565 | -10/Mines | Found Prototype Device 1565 | -10/Mines | Identified Exp. Sensor Array 1583 | -10/Mines | Received a Rocket Launcher from a helpful Derelict 1602 | -10/Mines | Discovered new exit (range 5) 1606 | -10/Mines | Met a Derelict who couldn't figure out how to use a Trap Extractor 1804 | -10/Mines | Reached level 5 1822 | -10/Mines | Discovered new exit (range 8) 1823 | -10/Mines | Learned Materials stockpile data 1872 | -10/Mines | Build established: Gunner 2091 | -10/Mines | Entered Materials 2091 | -9/Materials | Accompanied by 2 allies 2093 | -9/Materials | Reached level 6 2096 | -9/Materials | Led the pair of lost Derelicts to an unsafe place 2216 | -9/Materials | Reached level 7 2256 | -9/Materials | Destroyed 14 combat bots 2268 | -9/Materials | Discovered new exit (range 8) 2300 | -9/Materials | Upgraded with Power slot (x1) 2300 | -9/Materials | Upgraded with Propulsion slot (x1) 2300 | -9/Materials | Upgraded with Utility slot (x1) 2394 | -9/Materials | Discovered new exit (range 7) 2435 | -9/Materials | Discovered new exit (range 10) 2454 | -9/Materials | Reached level 8 2491 | -9/Materials | First assault squad dispatched 2507 | -9/Materials | Discovered new exit (range 12) 2574 | -9/Materials | Discovered new exit (range 15) 2583 | -9/Materials | Destroyed 7 combat bots 2744 | -9/Materials | Reached level 9 2983 | -9/Materials | Reached level 10 3024 | -9/Materials | Sterilization system engaged 3024 | -9/Materials | Non-combat units ordered to evacuate 3046 | -9/Materials | Entered Mines 3046 | -9/Mines | Accompanied by 1 ally 3107 | -9/Mines | Found a Scrap Suit stashed away for nefarious purposes 3108 | -9/Mines | Upgraded with Utility slot (x1) 3135 | -9/Mines | Learned Materials trap positions 3163 | -9/Mines | Discovered new exit (range 11) 3217 | -9/Mines | Discovered new exit (range 14) 3232 | -9/Mines | A weapon hastily lodged in a ceiling crevice suddenly fell to the ground 3248 | -9/Mines | Deemed a non-threat by the Exiles lab entrance 3248 | -9/Mines | Discovered new exit (range 5) 3345 | -9/Mines | Entered Exiles 3345 | -9/Exiles | Accompanied by 1 ally 3358 | -9/Exiles | Met 8R-AWN 3365 | -9/Exiles | Met EX-HEX 3375 | -9/Exiles | Led the pair of lost Derelicts to a safe place 3378 | -9/Exiles | Met EX-BIN 3384 | -9/Exiles | Aligned with FarCom system 3385 | -9/Exiles | Given EX-Vault access code 3396 | -9/Exiles | Opened EX-Vault 3400 | -9/Exiles | Found Trap Reconfigurator 3403 | -9/Exiles | Found Deploy-a-Sentry 3413 | -9/Exiles | Warned to stay clear of 0b10 Research branches 3422 | -9/Exiles | Build established: Tank 3429 | -9/Exiles | Met EX-DEC 3552 | -9/Exiles | Attacked by the Exiles 3687 | -9/Exiles | Core integrity fell below 50% 3705 | -9/Exiles | Destroyed 8R-AWN 3710 | -9/Exiles | Found Prototype Device 3710 | -9/Exiles | Identified AS-neutralizer No. 17b 3744 | -9/Exiles | DAS Turret deployed 3838 | -9/Exiles | Destroyed EX-DEC 3842 | -9/Exiles | Destroyed EX-BIN 3852 | -9/Exiles | Destroyed EX-HEX 3866 | -9/Exiles | Found Prototype Processor 3866 | -9/Exiles | Identified Exp. Core Analyzer 3875 | -9/Exiles | Found Deploy-a-Sentry 4062 | -9/Exiles | Discovered new exit (range 11) 4066 | -9/Exiles | Stole two prototypes: Trap Reconfigurator, Deploy-a-Sentry 4066 | -9/Exiles | Entered Mines 4123 | -8/Mines | ME-RLN came to Exiles' defense 4133 | -8/Mines | Core integrity fell below 20% 4151 | -8/Mines | Build established: Scavenger-Gunner 4161 | -8/Mines | ME-RLN assimilated allied T-07 Excavator 4163 | -8/Mines | Destroyed ME-RLN 4175 | -8/Mines | Found Prototype Device 4175 | -8/Mines | Identified ME-RLN's Chromatic Screen 4200 | -8/Mines | Reached level 11 4402 | -8/Mines | Discovered new exit (range 7) 4420 | -8/Mines | Discovered new exit (range 6) 4469 | -8/Mines | Upgraded with Propulsion slot (x1) 4527 | -8/Mines | Entered Materials 4528 | -8/Materials | Loaded intel: 19 trap records 4528 | -8/Materials | Core integrity fell below 50% 4528 | -8/Materials | Core integrity fell below 20% 4549 | -8/Materials | Reached level 12 4671 | -8/Materials | Garrison activated, responded to threat 4965 | -8/Materials | Discovered new exit (range 16) 4980 | -8/Materials | Reached level 13 5125 | -8/Materials | Discovered new exit (range 15) 5126 | -8/Materials | Upgraded with Utility slot (x1) 5177 | -8/Materials | Discovered new exit (range 16) 5207 | -8/Materials | Discovered new exit (range 3) 5327 | -8/Materials | First assault squad dispatched 5403 | -8/Materials | Destroyed 7 combat bots 5427 | -8/Materials | Sterilization system engaged 5427 | -8/Materials | Non-combat units ordered to evacuate 5439 | -8/Materials | Reached level 14 5485 | -8/Materials | Upgraded with Utility slot (x1) 5495 | -8/Materials | Identified exit to Storage 5516 | -8/Materials | Identified exit to Garrison 5517 | -8/Materials | Entered Garrison 5540 | -8/Garrison | Triggered checkpoint 5541 | -8/Garrison | Triggered checkpoint 5607 | -8/Garrison | Triggered checkpoint 5625 | -8/Garrison | Discovered new exit (range 12) 5650 | -8/Garrison | Garrison Relay disabled 5664 | -8/Garrison | Destroyed 7 combat bots 5694 | -8/Garrison | Discovered new exit (range 10) 5741 | -8/Garrison | Discovered new exit (range 9) 5841 | -8/Garrison | Garrison Relay disabled 5845 | -8/Garrison | Triggered checkpoint 5881 | -8/Garrison | Triggered checkpoint 5903 | -8/Garrison | Garrison Relay disabled 5932 | -8/Garrison | Discovered new exit (range 12) 5932 | -8/Garrison | Discovered new exit (range 38) 5932 | -8/Garrison | Discovered new exit (range 56) 5934 | -8/Garrison | Triggered checkpoint 5951 | -8/Garrison | Garrison Relay disabled 6009 | -8/Garrison | Triggered checkpoint 6085 | -8/Garrison | Garrison Relay disabled 6246 | -8/Garrison | Entered Materials 6246 | -8/Materials | Accompanied by 2 allies 6257 | -8/Materials | Discovered exit to Storage (range 12) 6263 | -8/Materials | Reached level 15 6342 | -8/Materials | Discovered new exit (range 3) 6365 | -8/Materials | Discovered exit to Storage (range 14) 6419 | -8/Materials | Discovered new exit (range 8) 6432 | -8/Materials | Unchained authorized (DW-4LL) 6432 | -8/Materials | Upgraded with Weapon slot (x1) 6525 | -8/Materials | Discovered new exit (range 13) 6646 | -8/Materials | First assault squad dispatched 6660 | -8/Materials | DW-4LL burst out of a wall 6753 | -8/Materials | Destroyed by G-47 Trooper with Particle Gun Last Messages --------------- DW-4LL: "CATCHMEIFYOUCANOHYEAH." 06675_ C-45 Heavy ARC bursts open, deploying its payload. 06675_ G-50 Soldier unfolds itself. 06675_ G-47 Trooper unfolds itself. 06675_ L-31 Rogue unfolds itself. 06676_ System corrupted: Matter fused (-9). 06694_ L-31 Rogue destroyed. 06695_ XL=O9JJMBXIUU7YIWKH 06697_ G-50 Soldier suffers critical hit (Destroy). 06697_ Destroyed Lgt. Angular Momentum Engine. 06701_ G-50 Soldier destroyed. 06701_ Switching to secondary target: G-47 Trooper. 06703_ G-47 Trooper destroyed. 06703_ Switching to secondary target: G-47 Trooper. 06705_ U-05 Engineer builds a Door. 06705_ G-47 Trooper destroyed. 06708_ Acquired 65 matter. 06708_ Acquired 220 matter. 06750_ System corrupted: Minigun jammed. 06750_ G-47 Trooper destroyed. Map ----- +----------------------------------------------------+ | #""" # / #?????????????????????? | | ######## #""" # %#?????????????????????? | | ???????# #""" # ! #?????????????????????? | | ???????# # # #?????????????????????? | | ???????# ########## ] #?? ??????????????????? | | ???????# #????????# !%* #?? ??????????????????? | | ???????# *#????????# [[ #?? ?#####????????????? | | ??###### =%##???????# [%% #?? ?# ????????????? | | ??#[[ =%[[###########/####?? ?# ????#???????? | | ??#[[ ==[*%* *#??? ?# """ #???????? | | ??#[[ *%%= = = ^%!#??# ## """ #???????? | | ??#[[ ![ *^ #??# ## #???????? | | ??#!! %[ ###+#########+#### ## """ #???????? | | ??#!! ##%#### ## % ## ## """ #???????? | | ??####?#!#??# ## ## ## """ #???????? | | ???????#?#??# ## a ## ## #???##### | | ???????# #??# ## ## ######+######## | | ???????#?#??# "T" ## # ? | | ???????# #??######### [%*g ? ! | | ???????#%#??# # g# | | ???????#?#??# """ # ##/#+### | | ???????# #??# """ # ## # | | ???????# #??# """ # ## """ #[[[ ** """ | | ???????# #??# """ # ## """ #[[[ **! R" | | ######## ##?# #####/#### """ #[ =*!! """ | | %###[* #???#@#??# # ]/ != | | ######## +=*[ #???#%#??#= = # *=/ * | | ## ###?% #???# ##?##########+#"#= | | = ## #?#=""T"" #####+;#####?# # | | ## ###=""""" ## #?#] """"" ! ## | | ! # ##+######## ? """ #??? """"" =!! #? | | + T" # """ #??? """"" ?%%!*#? | | ! # " / !!! """ #??? """"" =!= # | | # ########### !!! """ #?????"""" < ## | | ## ########???# !!! """ #??????""" # #? | | ######## # #???# #??????""" #######? | | # + """ #???# #?????? ???????? | | # # """ #???###########?????#####???????? | | # # """ #???????????????????????????????? | | # # #???????????????????????????????? | | # # ] / #???????????????????????????????? | | + ########???????????????????????????????? | | # ################???????????????????????? | | ######## ## * #???????????????????????? | | ?###### # [ #???????????????????????? | | ?# # #???????????????????????? | | ?# [%!+ #???????????????????????? | | ?###### [ # #???????????????????????? | | ??????###### #???????????????????????? | | ???????????###############???????????????????????? | +----------------------------------------------------+ Best States ------------- Heat Dissipation 67 Energy Generation 32 Energy Capacity 490 Matter Stores 450 Matter Capacity 450 Sight Range 16 Robot Scan Range 20 Terrain Scan Range 16 Terrain Scan Density 10 Additional Mass Support 12 Armor Coverage 375 Resistance: KI 20 Resistance: TH 20 Resistance: EX 20 Resistance: EM 20 Resistance: I 20 Resistance: S 20 Resistance: P 20 Weapon Cycling 25 Evasion (%) 57 Core Analysis 8 Salvage Targeting 1 Offensive Hacking 10 Defensive Hacking 5 Item Schematics ----------------- Adv. Visual Processing Unit | -8/Materials | Extracted Imp. Datajack | -8/Materials | Extracted Ion Engine | -8/Materials | Extracted Lgt. Nuclear Core | -8/Materials | Extracted Pulse Rifle | -8/Materials | Extracted Hcp. Battery | -8/Materials | Extracted Flight Unit | -8/Materials | Extracted Imp. Terrain Scan Processor | -8/Materials | Extracted Target Analyzer | -8/Materials | Extracted Imp. Power Shielding | -8/Materials | Extracted Robot Schematics ------------------ None Fabricated ------------ Nothing Repaired ---------- Nothing Studied --------- None Alien Tech Used ----------------- None Achievements -------------- None Challenges ------------ None RPGLIKE | -11 -10 -10 -9 -9 -9 -8 -8 -8 -8 --------- Run | Yrd Mat Min Mat Min Exi Min Mat Gar Mat Levels Raised 14 | . 3 1 5 . . 1 3 . 1 XP Earned 24616 | 3100 5046 1053 7344 574 117 1194 4106 1442 640 XP Spent 23950 | 2960 4100 1850 4515 2500 200 1505 4500 . 1820 Upgrades 43 | 10 5 3 10 2 1 4 5 . 3 Power Slot 1 | . . . 1 . . . . . . Propulsion Slot 4 | 1 1 . 1 . . 1 . . . Utility Slot 6 | 1 1 . 1 1 . . 2 . . Weapon Slot 4 | 1 2 . . . . . . . 1 Core Integrity 3 | . . . . . . 3 . . . Heat Dissipation 7 | 3 . . 3 . . . . . 1 Energy Generation 1 | . . . 1 . . . . . . Matter Storage 3 | . . . 2 . . . . . 1 Mass Support 3 | 1 1 . . 1 . . . . . Inventory Capacity 3 | 1 . 2 . . . . . . . Ranged Accuracy 4 | 2 . 1 1 . . . . . . Hack Attack % 2 | . . . . . . . 2 . . Hack Defense % 1 | . . . . . . . 1 . . KI Damage % 1 | . . . . . 1 . . . . Protomatter Created 3006 | 31 521 134 753 90 12 25 629 365 446 Integrity Restored 4867 | 19 955 64 1099 66 34 75 1746 586 223 Core 3376 | 19 770 35 656 38 30 75 1208 394 151 Parts 1491 | . 185 29 443 28 4 . 538 192 72 Protomatter Decayed 1379 | . 133 149 423 52 61 11 . 189 361 Game ------ Seed BehemothCentriumDeflector Manual? 0 Play Time 01:06:34 Cumulative 524.7 hours Start 2026.01.04 @ 20:33:19 End 2026.01.04 @ 21:44:04 Sessions 1 Manual Loads 0 Difficulty Rogue Special Mode Winter2019/RPGLIKE Game No. 193 Rogue 39 Adventurer 154 Explorer 0 Win Type - Total 20 Types 4/4/3/3/2/1/0/1/1/1 Lore% 95 Gallery% 88 Achievement% 61 Wizard Run 0 Options --------- Layout 0 ASCII 0 Keyboard 0 Movement Numpad Keybinds 0 Fullscreen 2 Font 18/SmallcapsGlow Map View 76x50 Zoom Use 0% Tactical HUD 1 Map Filters NONE Filters NONE Steam 1 RUN: 1e1e7ea5-d0b1-4126-9e4f-d89f26385a2e